[Event "DFMM-LV 2023"]
[Site "Braunfels"]
[Date "2023.06.10"]
[Round "4.22"]
[White "Pflug, Tanja"]
[Black "Schneider, Birgit"]
[Result "1/2-1/2"]
[Annotator "TA"]
[ECO "D02"]
[WhiteElo "1994"]
[BlackElo "1855"]
[PlyCount "37"]
[EventDate "2023.06.09"]
[EventType "team-tourn"]
[EventCountry "GER"]
[SourceTitle "playchess.com"]
[Source "ChessBase"]
[SourceQuality "1"]
[TimeControl "40/5400+30:1800+30"]

{[%evp 20,37,3,-20,-16,-41,-33,-60,-63,-78,-33,-43,-20,-26,10,8,187,147,145,-310]} 1. d4 {[%emt 0:00:02]} d5 {[%emt 0:00:07]} 2. Bf4 {[%emt 0:00:06]} Nf6 {[%emt 0:00:41]} 3. e3 {[%emt 0:00:07]} e6 {[%emt 0:00:48]} 4. Nd2 {[%emt 0:01:31]} Bd6 {[%emt 0:01:45]} 5. Bg3 {[%emt 0:00:08]} c5 {[%emt 0:02:56]} 6. c3 {[%emt 0:01:23]} Nc6 {[%emt 0:01:54][%cal Bb8c6,Bc6e7,Be7g6][%mdl 32]} 7. f4 {[%emt 0:03:10]} O-O {[%emt 0:04:37]} 8. Bd3 {[%emt 0:01:57]} b6 {[%emt 0:03:01]} 9. Ngf3 {[%emt 0:03:10]} Qc7 {[%emt 0:06:05]} 10. Ne5 {[%emt 0:03:28]} Bb7 {[%emt 0:02:29]} 11. O-O {[%emt 0:08:07]} Ne7 {[%emt 0:04:27] D02: 1 d4 d5 2 Nf3 sidelines, including 2...Nf6 3 g3 and 2...Nf6 3 Bf4.} 12. Bh4 {[%emt 0:04:17]} Ne4 {[%emt 0:07:42]} 13. g4 {[%emt 0:25:33] Repels Nf5} f6 {[%emt 0:14:18] [#] Threatens to win with ...g5. Black is slightly better.} 14. Nef3 {[%emt 0:01:19] [#]} Rae8 $146 {[%emt 0:08:49][%cal Og7g5]} ({Predecessor:} 14... g5 15. fxg5 Ng6 16. Qe1 fxg5 17. Bxe4 Nxh4 18. Bd3 Nxf3+ 19. Nxf3 h6 20. Qe2 Rae8 {0-1 Fernandez Sanchez,M (2097)-Chinchilla Miranda,E (2166) CRI-ch San Jose 2020 (5)}) 15. Qe2 {[%emt 0:04:56]} Ng6 {[%emt 0:05:23]} 16. Bg3 {[%emt 0:06:17]} Nxg3 {[%emt 0:03:33]} 17. hxg3 {[%emt 0:00:29]} e5 $2 {[%emt 0:02:15] [#]} (17... Qc8 $11 {and Black stays safe.}) 18. Bxg6 {[%emt 0:06:37]} hxg6 {[%emt 0:00:21]} 19. Nh4 $2 {[%emt 0:01:17][%mdl 40960] Weighted Error Value: White=0.17 (very precise) /Black=0.46. An unexpected result.} (19. dxe5 $16 {stays on course.} Be7 20. Qd3) 1/2-1/2

[Event "DFMM-LV 2023"]
[Site "Braunfels"]
[Date "2023.06.10"]
[Round "4.23"]
[White "Farhadyar, Kiana"]
[Black "Eue, Vicky"]
[Result "0-1"]
[Annotator "NA RC COMBH"]
[ECO "C02"]
[WhiteElo "1530"]
[BlackElo "1682"]
[PlyCount "106"]
[EventDate "2023.06.09"]
[EventType "team-tourn"]
[EventCountry "GER"]
[SourceTitle "playchess.com"]
[Source "ChessBase"]
[SourceQuality "1"]
[TimeControl "40/5400+30:1800+30"]

1. e4 {[%emt 0:00:03]} e6 {[%emt 0:00:38]} 2. d4 {[%emt 0:00:20]} d5 {[%emt 0:00:13]} 3. e5 {[%emt 0:02:57]} c5 {[%emt 0:00:59]} 4. c3 {[%emt 0:05:55]} Nc6 {[%emt 0:00:27]} 5. Nf3 {[%emt 0:00:12]} Qb6 {[%emt 0:00:14]} 6. Be2 {[%emt 0:01:20]} Bd7 {[%emt 0:00:45]} 7. O-O {[%emt 0:00:23]} Rc8 {[%emt 0:01:25]} 8. b3 {[%emt 0:04:22]} cxd4 {[%emt 0:04:46]} 9. cxd4 {[%emt 0:00:20]} Nb4 {[%emt 0:03:09]} 10. Ne1 {[%emt 0:02:00]} Ne7 {[%emt 0:03:29]} 11. Bb2 {[%emt 0:04:45]} Nf5 {[%emt 0:01:55]} 12. Na3 {[%emt 0:16:07]} Be7 {[%emt 0:05:38]} 13. Nec2 {[%emt 0:05:27]} Nc6 {[%emt 0:03:31]} 14. Nb1 {[%emt 0:09:51]} O-O {[%emt 0:02:28]} 15. Qd3 {[%emt 0:01:27]} a6 {[%emt 0:03:55]} 16. Nd2 {[%emt 0:03:09]} Na5 {[%emt 0:01:58]} 17. Nf3 {[%emt 0:11:07]} Bb5 {[%emt 0:06:29]} 18. Qd2 {[%emt 0:00:53]} Bd7 {[%emt 0:13:54]} 19. Ne3 {[%emt 0:01:53]} Bb4 {[%emt 0:05:23]} 20. Qd1 {[%emt 0:04:01]} Nxe3 {[%emt 0:01:30]} 21. fxe3 {[%emt 0:00:08]} Bc3 {[%emt 0:00:11]} 22. Bxc3 {[%emt 0:01:32]} Rxc3 {[%emt 0:00:22]} 23. Qd2 {[%emt 0:00:12]} Rfc8 {[%emt 0:00:44]} 24. Ng5 {[%emt 0:15:21]} Be8 {[%emt 0:02:11]} 25. Bd3 {[%emt 0:01:32]} g6 {[%emt 0:01:10]} 26. Rf2 {[%emt 0:02:02]} h6 {[%emt 0:03:17]} 27. Nh3 {[%emt 0:00:23]} Qc7 {[%emt 0:00:38]} 28. b4 {[%emt 0:00:39]} Rc1+ {[%emt 0:00:17]} 29. Rxc1 {[%emt 0:01:05]} Qxc1+ {[%emt 0:00:07]} 30. Qxc1 {[%emt 0:01:40]} Rxc1+ {[%emt 0:00:04]} 31. Rf1 {[%emt 0:00:15]} Rxf1+ {[%emt 0:00:09]} 32. Kxf1 {[%emt 0:00:15]} Nc4 {[%emt 0:00:08]} 33. Bxc4 {[%emt 0:01:39]} dxc4 {[%emt 0:00:05]} 34. Ke2 {[%emt 0:00:47]} Bc6 {[%emt 0:01:29]} 35. g3 {[%emt 0:00:20]} Kg7 {[%emt 0:04:24]} 36. Nf2 {[%emt 0:00:41]} h5 {[%emt 0:00:42]} 37. e4 {[%emt 0:00:44]} b5 {[%emt 0:02:17]} 38. Ke3 {[%emt 0:00:09]} f6 {[%emt 0:01:06]} 39. exf6+ {[%emt 0:00:45]} Kxf6 {[%emt 0:00:10]} 40. h4 {[%emt 0:00:23]} Bb7 {[%emt 0:03:09]} 41. Nd1 {[%emt 0:30:42]} e5 {[%emt 0:36:39]} 42. Nc3 {[%emt 0:02:38]} Bc6 {[%emt 0:01:25]} 43. a3 {[%emt 0:00:34]} Bb7 {[%emt 0:03:04]} 44. Nb1 {[%emt 0:00:00]} Bc8 {[%emt 0:00:00]} 45. Nd2 {[%emt 0:00:00]} Bg4 {[%emt 0:00:00]} 46. a4 {[%emt 0:00:00]} c3 {[%emt 0:00:00]} 47. Nb3 {[%emt 0:00:00]} bxa4 {[%emt 0:00:00]} 48. Nc1 {[%emt 0:00:00]} exd4+ {[%emt 0:00:00]} 49. Kxd4 {[%emt 0:00:00]} c2 {[%emt 0:00:00]} 50. Kd5 {[%emt 0:00:00]} Be6+ {[%emt 0:00:00]} 51. Kd4 {[%emt 0:00:00]} a3 {[%emt 0:00:00]} 52. Kc3 {[%emt 0:00:00]} a2 {[%emt 0:00:00]} 53. Kb2 {[%emt 0:00:00]} Ke5 {[%emt 0:00:00]} 0-1

[Event "DFMM-LV 2023"]
[Site "Braunfels"]
[Date "2023.06.10"]
[Round "4.25"]
[White "Rieseler, Caroline"]
[Black "Wagner, Margarethe"]
[Result "1-0"]
[Annotator "TA"]
[ECO "B90"]
[WhiteElo "2126"]
[BlackElo "1831"]
[PlyCount "151"]
[EventDate "2023.06.09"]
[EventType "team-tourn"]
[EventCountry "GER"]
[SourceTitle "playchess.com"]
[Source "ChessBase"]
[SourceQuality "1"]
[TimeControl "40/5400+30:1800+30"]

{[%evp 24,151,19,19,30,0,0,0,33,28,22,32,37,35,37,0,0,0,0,0,5,0,0,-25,17,17,56,56,52,57,63,44,58,8,5,0,0,0,47,41,39,48,50,12,21,18,139,34,50,0,0,-5,0,0,0,0,8,0,66,53,76,66,78,77,75,54,118,78,79,83,190,174,410,408,541,543,539,525,510,516,490,486,387,319,649,646,635,635,622,605,602,579,615,464,399,345,279,59,726,703,682,239,441,0,1462,1450,29968,29970,29966,29965,29960,29960,29975,29976,29978,29979,29979,29980,29980,29981,29983,29984,29987,29988,29988,29989,29993,0,29988,0]} 1. e4 {[%emt 0:00:02]} c5 {[%emt 0:00:06]} 2. Nf3 {[%emt 0:00:06]} d6 {[%emt 0:00:05]} 3. d4 {[%emt 0:00:07]} cxd4 {[%emt 0:00:06]} 4. Nxd4 {[%emt 0:00:05]} Nf6 {[%emt 0:00:07]} 5. Nc3 {[%emt 0:00:05]} a6 {[%emt 0:00:06]} 6. Be3 {[%emt 0:00:12]} e5 {[%emt 0:00:12]} 7. Nf3 {[%emt 0:00:04]} Be7 {[%emt 0:00:07]} 8. Bc4 {[%emt 0:00:07]} O-O {[%emt 0:00:11]} 9. O-O {[%emt 0:00:04]} Be6 {[%emt 0:00:07]} 10. Bb3 {[%emt 0:00:11]} Nc6 {[%emt 0:00:07]} 11. Qe2 {[%emt 0:00:15]} Na5 {[%emt 0:00:46]} 12. Rfd1 {[%emt 0:00:14]} Nxb3 {[%emt 0:00:54]} 13. axb3 {[%emt 0:00:05]} Qe8 {[%emt 0:00:27] B90: Sicilian Najdorf: Unusual White 6th moves, 6 Be3 Ng4 and 6 Be3 e5.} 14. h3 {[%emt 0:02:47]} h6 {[%emt 0:07:11] [#]} 15. Nh4 $146 {[%emt 0:05:25]} ({Predecessor:} 15. Nh2 Qc6 16. Qf3 Nh7 17. Qg3 Ng5 18. Bxg5 Bxg5 19. Qd3 Rad8 20. Nf3 Be7 21. Rac1 {½-½ Draskovic,L (2469)-Hillarp Persson,T (2528) EU-chT 23rd Terme Catez 2021 (5.2)}) 15... Qc6 {[%emt 0:10:10] The position is equal.} 16. Qf3 {[%emt 0:03:43]} Rfd8 {[%emt 0:09:23]} 17. Nf5 {[%emt 0:00:30]} Bxf5 {[%emt 0:00:30]} 18. Qxf5 {[%emt 0:00:30]} b5 {[%emt 0:00:30]} 19. Rd2 {[%emt 0:00:30]} b4 {[%emt 0:00:30]} 20. Nd5 {[%emt 0:00:30]} Nxd5 {[%emt 0:00:30]} 21. exd5 {[%emt 0:00:30]} Qd7 {[%emt 0:00:30]} 22. Qd3 {[%emt 0:00:30]} (22. Qxd7 {simplifies} Rxd7 23. c4 bxc3 24. bxc3 Rc7 25. c4) 22... Qb7 {[%emt 0:00:30]} 23. Ra4 {[%emt 0:00:30]} Bf6 {[%emt 0:00:30]} 24. Qf5 {[%emt 0:00:30][%cal Oe3h6]} Be7 {[%emt 0:00:30]} 25. Qg4 {[%emt 0:00:30][%csl LRb4,LRh6]} a5 {[%emt 0:00:30]} 26. Bxh6 {[%emt 0:00:30][%csl Gh6][%cal Rg4g7]} g6 {[%emt 0:00:30]} 27. Be3 {[%emt 0:00:30] White is more active.} Kg7 {[%emt 0:00:30]} 28. f4 {[%emt 0:00:30]} (28. Qd1 $14) 28... f5 $11 {[%emt 0:00:30]} 29. Qf3 {[%emt 0:00:30]} e4 {[%emt 0:00:30]} 30. Qf2 {[%emt 0:00:30]} Ra6 {[%emt 0:00:30] Prevents Bb6.} (30... Bf6 $11 {feels stronger.}) 31. Bd4+ {[%emt 0:00:30]} Kf7 {[%emt 0:00:30]} 32. Ra1 {[%emt 0:00:30]} Rc8 {[%emt 0:00:30]} 33. c3 {[%emt 0:00:30]} bxc3 {[%emt 0:00:30]} 34. Bxc3 {[%emt 0:00:30]} Bd8 {[%emt 0:00:30] [#]} (34... Qa7 $11 {keeps the balance.} 35. Qxa7 Rxa7) 35. Kh1 {[%emt 0:00:30]} (35. Qd4 $2 Bb6 36. Ra3 Bxd4+ $19) (35. Kh2 $1 $16) 35... Qb6 $14 {[%emt 0:00:30] Strongly threatening ...e3.} 36. Qd4 {[%emt 0:00:30]} (36. Qe1 $14) 36... Qxd4 $11 {[%emt 0:00:30]} 37. Bxd4 {[%emt 0:00:30]} Rb8 {[%emt 0:00:30]} 38. Ra3 {[%emt 0:00:30]} Bf6 {[%emt 0:00:30]} 39. Bc3 {[%emt 0:00:30]} Bh4 {[%emt 0:00:30]} 40. Kh2 {[%emt 0:00:30] Prevents Bg3+} Rb5 {[%emt 0:00:30]} ({Better is} 40... Rab6 $11) 41. g3 {[%emt 0:30:30]} Bd8 {[%emt 0:30:30] [#]} 42. b4 $1 {[%emt 0:00:30]} Bf6 {[%emt 0:00:30]} (42... Ra7 43. Rd1) 43. g4 {[%emt 0:00:30]} e3 {[%emt 0:00:30]} 44. Re2 {[%emt 0:00:30]} (44. Rd3 {is interesting.} e2 45. Re3 Bxc3 46. bxc3 a4 47. Rxe2 Rxd5 48. Kg2) 44... Rxd5 {[%emt 0:49:36]} ({Black should try} 44... Bxc3 $14 45. Rxc3 (45. bxc3 Rxd5 46. bxa5 Rd3 $14) 45... axb4 46. Rcxe3 Ra7) 45. Rxe3 {[%emt 1:00:32][%cal Rb4a5]} (45. Rxa5 $2 Raxa5 46. bxa5 Bxc3 47. Rxe3 (47. bxc3 $2 Rd2 $19) 47... Bxa5 48. gxf5 gxf5 $19) (45. Bxf6 {with more complications.} Rd2 46. Rxd2 exd2 47. Rd3) 45... fxg4 {[%emt 0:00:30]} 46. hxg4 {[%emt 0:00:30][%cal Rb4a5]} Ra8 {[%emt 0:00:30]} (46... Bxc3 $16 {was necessary.} 47. Rexc3 g5) 47. Kg3 {[%emt 0:00:30][%cal Rb4a5]} (47. Rxa5 $6 Rdxa5 48. bxa5 Bxc3 49. Rxc3 (49. bxc3 Rxa5 50. Rf3 d5 $14) 49... Rxa5) 47... Bd8 $2 {[%emt 0:00:30]} (47... g5) 48. bxa5 $18 {[%emt 0:00:30]} Bxa5 {[%emt 0:00:30]} 49. Kf3 {[%emt 0:00:30] b4 is the strong threat.} Ra7 {[%emt 0:00:30]} 50. Bxa5 {[%emt 0:00:30]} Raxa5 {[%emt 0:00:30]} 51. Rxa5 {[%emt 0:00:30]} Rxa5 {[%emt 0:00:30][%mdl 4096] Endgame KR-KR} 52. b4 {[%emt 0:00:30]} Rb5 {[%emt 0:00:30] [#]} 53. Rb3 {[%emt 0:00:30]} d5 $2 {[%emt 0:00:30]} (53... Kf6 54. Ke4 Ke6) 54. Ke3 {[%emt 0:00:30]} Kf6 {[%emt 0:00:30]} 55. Kd4 {[%emt 0:00:30]} Ke6 {[%emt 0:00:30]} 56. Rb1 {[%emt 0:00:30]} Kd6 {[%emt 0:00:30]} 57. Kc3 {[%emt 0:00:30]} (57. f5 gxf5 58. gxf5 Kd7 $14) 57... Kc6 {[%emt 0:00:30]} 58. Ra1 {[%emt 0:00:30] Black must now prevent Ra6+.} Rb6 {[%emt 0:00:30]} 59. Rh1 {[%emt 0:00:30] Hoping for Rh6.} Kd7 {[%emt 0:00:30]} 60. Rh3 $2 {[%emt 0:00:30]} (60. Rh7+ $18 Ke8 61. Rh6) 60... d4+ $2 {[%emt 0:00:30][%mdl 8192]} 61. Kc4 {[%emt 0:00:30]} (61. Kxd4 Rxb4+ 62. Ke5 Ke8 $14) 61... d3 {[%emt 0:00:30]} 62. Rh7+ $2 {[%emt 0:00:30]} ({Inferior is} 62. Kxd3 Rxb4 63. Rh7+ Ke6 $11) (62. Rxd3+ Kc7 63. Rd5) 62... Ke8 $2 {[%emt 0:00:30]} (62... Kc6 63. Rh3 (63. Kxd3 Rxb4 64. Ke3 g5 $16) 63... d2) 63. Rh3 $2 {[%emt 0:00:30]} ({Weaker is} 63. Kxd3 Rxb4 64. Ke3 g5 $11) (63. Rh2 $18) 63... Rf6 $2 {[%emt 0:00:30][%mdl 8192]} (63... Kd7 $11) 64. Rxd3 {[%emt 0:00:30]} Rxf4+ {[%emt 0:00:30]} 65. Rd4 {[%emt 0:00:30]} Rf1 {[%emt 0:00:30]} 66. b5 {[%emt 0:00:30][%cal Bb4b5,Bb5b6,Bb6b7][%mdl 32]} Rb1 {[%emt 0:00:30]} 67. Kc5 {[%emt 0:00:30]} Ke7 {[%emt 0:00:30]} 68. b6 {[%emt 0:00:30]} Rb2 {[%emt 0:00:30]} 69. Rb4 {[%emt 0:00:30]} Rc2+ {[%emt 0:00:30]} 70. Rc4 {[%emt 0:00:30]} Rb2 {[%emt 0:00:30]} 71. Kc6 {[%emt 0:00:30]} Ke8 {[%emt 0:00:30]} 72. Kc7 {[%emt 0:00:30]} Rf2 {[%emt 0:00:30]} 73. b7 {[%emt 0:00:30]} Rf7+ {[%emt 0:00:30]} 74. Kc8 {[%emt 0:00:30]} Rf6 {[%emt 0:17:14]} 75. Kc7 {[%emt 0:15:46]} Rf7+ {[%emt 0:01:30]} 76. Kc8 $2 {[%emt 0:00:10][%mdl 32768] Weighted Error Value: White=0.26 (precise) /Black=0.31. Sensor Board Error (Ke4/e5)?} (76. Kb6 {mates} Rxb7+ 77. Kxb7 Kd7 78. Rc6 g5 79. Kb6 Kd8 80. Rc7 Ke8 81. Kc6) 1-0

[Event "DFMM-LV 2023"]
[Site "Braunfels"]
[Date "2023.06.10"]
[Round "4.26"]
[White "Albayrak, Nese Pinar"]
[Black "Geske, Bruna"]
[Result "0-1"]
[Annotator "TA"]
[ECO "B33"]
[WhiteElo "1763"]
[BlackElo "2054"]
[PlyCount "60"]
[EventDate "2023.06.09"]
[EventType "team-tourn"]
[EventCountry "GER"]
[SourceTitle "playchess.com"]
[Source "ChessBase"]
[SourceQuality "1"]
[TimeControl "40/5400+30:1800+30"]

{[%evp 27,60,7,7,0,4,-33,25,0,0,0,0,0,0,0,31,31,83,6,10,0,0,0,20,29,33,-196,-194,-402,-420,-650,-519,-518,-503,-29999,999]} 1. e4 {[%emt 0:00:02]} c5 {[%emt 0:00:05]} 2. Nf3 {[%emt 0:00:05][%cal Bg1f3,Bf3d4,Bd4b5][%mdl 32]} Nc6 {[%emt 0:00:04]} 3. d4 {[%emt 0:00:05]} cxd4 {[%emt 0:00:13]} 4. Nxd4 {[%emt 0:00:07]} Nf6 {[%emt 0:00:05]} 5. Nc3 {[%emt 0:00:11]} e5 {[%emt 0:00:10]} 6. Ndb5 {[%emt 0:00:11]} d6 {[%emt 0:00:06]} 7. Bg5 {[%emt 0:00:19]} a6 {[%emt 0:00:16]} 8. Na3 {[%emt 0:00:07]} b5 {[%emt 0:00:14]} 9. Nd5 {[%emt 0:00:15]} Be7 {[%emt 0:00:06]} 10. Bxf6 {[%emt 0:00:24]} Bxf6 {[%emt 0:00:05]} 11. c3 {[%emt 0:01:06]} O-O {[%emt 0:00:12]} 12. Be2 {[%emt 0:00:40]} Bg5 {[%emt 0:01:20]} 13. O-O {[%emt 0:01:37]} Be6 {[%emt 0:00:55]} 14. Nc2 {[%emt 0:03:22]} Rb8 {[%emt 0:00:24]} 15. a4 {[%emt 0:03:17] B33: Sicilian: Pelikan and Sveshnikov Variations.} bxa4 {[%emt 0:00:12]} 16. Rxa4 {[%emt 0:27:15]} a5 {[%emt 0:00:15]} (16... Rxb2 $15 17. Bxa6 Ne7) 17. Qa1 {[%emt 0:03:14] [#] White has an edge.} f5 $146 {[%emt 0:14:30]} ({Predecessor:} 17... Qd7 18. Nce3 Bxe3 19. Nxe3 Qb7 20. Rb1 Bb3 21. Ra3 a4 22. Bc4 Na5 23. Bxb3 Nxb3 24. Qa2 Nd2 25. Rd1 Qxb2 26. Rxd2 Qxa2 27. Raxa2 Rb1+ 28. Rd1 Rfb8 29. Kf1 {1-0 Doering,A (1691)-Zikeli,S (1885) Wuerttemberg-ch U16 2005 (6)}) 18. Bf3 {[%emt 0:04:36]} Qd7 {[%emt 0:23:50]} 19. exf5 $1 {[%emt 0:07:01]} Bxf5 {[%emt 0:01:57]} 20. Nde3 {[%emt 0:02:37]} Bd3 {[%emt 0:01:54]} 21. Rd1 {[%emt 0:04:23]} Bb5 {[%emt 0:16:15]} (21... Rxf3 $14 22. Rxd3 (22. gxf3 Be2 $11) 22... Rf4) 22. Bxc6 {[%emt 0:05:28]} (22. Rg4 $16 Be7 23. Na3) 22... Bxc6 $11 {[%emt 0:00:10][%cal Bb5c6,Bc6f3,Bf3b7][%mdl 32]} 23. Rxa5 {[%emt 0:01:06]} Qf7 {[%emt 0:07:35]} 24. Rd2 {[%emt 0:10:51]} Bh4 {[%emt 0:02:13][%cal Rh4f2]} 25. f3 {[%emt 0:18:53]} Kh8 {[%emt 0:04:04]} 26. Rxd6 $2 {[%emt 0:01:47] [#] Now White is beyond hope.} (26. b4 $14 {stays ahead.}) 26... Bxf3 $1 $40 {[%emt 0:01:24][%mdl 128] Black wants a kill.} 27. Qf1 {[%emt 0:03:21] [#]} (27. Rd2 Bc6 28. Qf1) 27... Qc7 $1 {[%emt 0:01:32]} 28. Rda6 {[%emt 0:01:28]} (28. gxf3 $142 Qxd6 29. Nc4) 28... Bb7 {[%emt 0:00:42] This pair of bishops is nice.} 29. Qc1 {[%emt 0:00:37]} Qf7 {[%emt 0:05:48]} 30. g3 {[%emt 0:00:31]} (30. Ra1 $19 Qf2+ 31. Kh1) 30... Qf4 $4 {[%emt 0:18:54][%mdl 40960] An entertaining game by Geske.   Weighted Error Value: White=0.77/Black=0.25 (precise) . Loss on time!?} 0-1